bitfinex/quotes_ETHUSD_20241101
["timestamp","ask_amount","ask_price","bid_price","bid_amount"]
[1730451292270,0.003027,2503.7,2503.6,3.99424]
[1730451292607,0.003027,2503.7,2503.5,3.99432]
[1730451293801,0.003027,2503.7,2503.5,3.99429]
[1730451294172,0.003027,2503.7,2503.6,0.04260904]
[1730451296808,0.003027,2503.7,2503.6,4.03684904]
[1730451297775,0.003027,2503.9,2503.6,4.03684904]
[1730451298278,0.003027,2503.9,2503.6,0.04260904]
[1730451298983,0.003027,2503.9,2503.6,4.03679904]
[1730451299389,0.003027,2503.9,2503.6,0.04260904]
[1730451299588,0.003027,2503.9,2503.7,3.99401]
[1730451299780,0.003027,2503.9,2503.8,0.0425532]
[1730451299981,0.003027,2503.9,2503.8,3.99392]
[1730451300181,0.829927,2504.1,2503.8,4.0364732]
[1730451300393,0.829927,2504.1,2504.0,3.99361]
[1730451300394,0.003027,2504.1,2504.0,3.99361]
[1730451300617,0.003027,2504.1,2504.0,0.04249087]
[1730451300983,0.003027,2503.8,2503.3,7.98924]
[1730451301187,0.003027,2503.6,2503.4,0.0426779]
[1730451301381,0.003027,2503.6,2503.2,4.1168381]
[1730451301691,0.003027,2503.6,2503.3,4.03600471]
[1730451301896,0.003027,2503.6,2503.3,0.04133471]
[1730451302280,0.003027,2503.6,2503.3,3.99464]
[1730451302519,0.003027,2503.6,2503.4,0.04130353]
[1730451303304,0.003027,2503.6,2503.4,4.03586353]
[1730451303535,0.003027,2503.6,2503.5,3.9944]
[1730451303945,0.003027,2503.8,2503.5,4.03567235]
[1730451304121,0.003027,2503.6,2503.5,4.03567235]
[1730451306644,0.003027,2503.6,2503.5,0.04127235]
[1730451307943,0.003027,2503.8,2503.6,3.99418]
[1730451308255,0.003027,2503.8,2503.7,0.04123924]
[1730451311339,0.003027,2503.8,2503.7,0.0413107]
[1730451311562,0.003027,2503.8,2503.6,0.04134188]
[1730451311851,0.003027,2503.8,2503.7,0.0413107]
[1730451312037,0.003027,2503.8,2503.7,4.0353907]
[1730451312244,0.003027,2503.8,2503.6,3.99409]
[1730451312445,0.003027,2503.8,2503.7,0.0413107]
[1730451317339,0.003027,2503.8,2503.6,3.99422]
[1730451317540,0.003027,2503.8,2503.7,0.0413107]
[1730451317746,0.003027,2503.8,2503.7,4.0353907]
[1730451318557,0.003027,2503.8,2503.7,0.0413107]
[1730451319859,0.003027,2504.2,2504.1,3.99335]
[1730451320023,3.996017,2504.4,2503.9,3.9937]
[1730451320223,0.003027,2504.2,2504.1,0.03982115]
[1730451320455,3.99345,2504.1,2504.0,0.03985231]
[1730451320648,4.88698007,2504.1,2503.6,3.99422]
[1730451320828,5.69391478,2504.1,2503.6,3.99422]
[1730451321026,0.003027,2503.6,2503.3,3.99465]
[1730451321226,0.003027,2503.6,2503.4,3.99446]
[1730451321528,0.003027,2503.6,2503.5,3.9944]
[1730451324330,0.003027,2503.6,2503.5,4.03435944]
[1730451324876,0.003027,2503.8,2503.6,4.78172]
[1730451325035,0.003027,2504.0,2503.7,3.99408]
[1730451325235,0.003027,2504.0,2503.8,3.99392]
[1730451325422,0.003027,2504.0,2503.7,4.03393709]
[1730451325762,0.08275707,2504.0,2503.9,0.03983475]
[1730451326057,0.003027,2504.0,2503.9,0.03983475]
[1730451326274,0.003027,2504.0,2503.8,3.99384]
[1730451326583,0.003027,2504.0,2503.9,0.03983475]
[1730451327078,0.91075707,2504.3,2503.9,4.03348475]
[1730451327260,0.003027,2504.1,2503.9,4.03348475]
[1730451328873,0.003027,2504.1,2504.0,3.99361]
[1730451329383,0.003027,2504.1,2504.0,4.03341359]
[1730451330584,0.831027,2504.3,2504.0,4.03341359]
[1730451331246,0.003027,2504.1,2504.0,4.03341359]
[1730451331747,0.003027,2504.1,2504.0,0.03980359]
[1730451331953,0.831027,2504.3,2504.0,4.03341359]
[1730451332164,0.831027,2504.3,2504.0,4.03331359]
[1730451334183,0.003027,2504.3,2504.0,0.03980359]
[1730451334359,0.003027,2504.3,2504.1,3.99332]
[1730451334684,0.003027,2504.3,2504.2,0.03969253]
[1730451335847,7.89328707,2504.3,2504.2,0.03969253]
[1730451336187,0.820427,2503.8,2503.4,4.81886]
[1730451336346,0.820427,2503.8,2503.2,4.1168381]
[1730451336347,0.003027,2503.6,2503.2,4.1168281]
[1730451336746,0.003027,2503.6,2503.4,3.99443]
[1730451337182,0.820427,2503.8,2503.5,3.99432]
[1730451337347,0.003027,2503.8,2503.5,0.7866]
[1730451337550,0.003027,2503.8,2503.5,4.78098]
[1730451338164,0.003027,2503.8,2503.5,0.7866]
[1730451338568,0.003027,2503.8,2503.4,7.98891]
[1730451338750,0.003027,2503.8,2503.4,3.99443]
[1730451339393,0.003027,2503.8,2503.5,0.03866214]
[1730451339606,0.003027,2503.8,2503.5,4.03303214]
[1730451340080,0.003027,2503.8,2503.5,0.03866214]
[1730451340288,0.003027,2503.8,2503.5,4.03291214]
[1730451340645,0.003027,2503.8,2503.6,3.99422]
[1730451340990,0.003027,2503.7,2503.6,3.99422]
[1730451341220,0.003027,2503.9,2503.6,3.99422]
[1730451341505,0.003027,2503.9,2503.3,0.8028]
[1730451341506,0.003027,2503.9,2503.7,3.99399]
[1730451341879,0.003027,2503.9,2503.7,7.98799]
[1730451342201,0.003027,2503.9,2503.7,3.99399]
[1730451342610,0.003027,2503.9,2503.8,3.99392]
[1730451342913,0.003027,2503.9,2503.7,3.99399]
[1730451343222,0.003027,2503.9,2503.7,7.98798]
[1730451343374,0.003027,2503.9,2503.7,3.99399]
[1730451343574,0.003027,2503.9,2503.7,7.98797]
[1730451344115,0.003027,2503.9,2503.5,3.9943]
[1730451344606,0.08275707,2503.9,2503.5,3.9943]
[1730451345184,0.003027,2503.9,2503.5,3.9943]
[1730451346187,0.49131771,2503.9,2503.5,7.98862]
[1730451346911,0.49131771,2503.9,2503.5,3.9943]
[1730451347087,0.003027,2503.9,2503.5,3.9943]
[1730451348294,0.003027,2503.9,2503.5,7.98861]
[1730451348503,0.003027,2503.4,2503.2,0.1220481]
[1730451352839,0.003027,2503.4,2503.2,4.1169081]
[1730451353021,0.003027,2503.4,2503.2,0.1220481]
[1730451353335,0.003027,2503.4,2503.2,4.1168381]
[1730451353928,0.003027,2503.4,2503.2,0.1220481]
[1730451354137,0.003027,2503.4,2503.2,4.1168881]
[1730451354350,0.003027,2503.4,2503.3,0.0376982]
[1730451354994,0.003027,2503.4,2503.2,0.1220481]
[1730451355315,0.003027,2503.4,2503.3,0.0376982]
[1730451355723,0.8178,2503.3,2503.2,0.1220481]
[1730451356103,4.81252,2503.3,2503.2,0.1220481]
[1730451356295,5.77327377,2503.3,2503.2,0.1220481]
[1730451357198,1.77855377,2503.3,2503.2,0.1220481]
[1730451359437,5.77327377,2503.3,2503.2,0.1220481]
[1730451359962,1.77855377,2503.3,2503.2,0.1220481]
[1730451360640,5.77327377,2503.3,2503.2,0.1220481]
[1730451360799,1.77855377,2503.3,2503.2,0.1220481]
[1730451361140,5.77327377,2503.3,2503.2,0.1220481]
[1730451362509,1.77855377,2503.3,2503.2,0.1220481]
[1730451362696,5.77327377,2503.3,2503.2,0.1220481]
[1730451363121,1.77855377,2503.3,2503.2,0.1220481]
[1730451366949,5.77327377,2503.3,2503.2,0.1220481]
[1730451369055,1.77855377,2503.3,2503.2,0.1220481]
[1730451369226,0.003027,2503.4,2503.3,3.99472]
[1730451369431,0.003027,2503.4,2503.3,4.82567683]
[1730451376661,0.003027,2503.5,2503.4,3.99453]
[1730451376939,0.003027,2503.5,2503.4,4.03900733]
[1730451377166,0.003027,2503.5,2503.4,0.04447733]
[1730451377682,0.003027,2503.5,2503.4,4.03903733]
[1730451379400,0.003027,2503.7,2503.4,4.03903733]
[1730451379560,0.003027,2503.9,2503.7,3.99404]
[1730451379763,0.003027,2503.9,2503.7,4.77454]
[1730451380062,0.003027,2503.9,2503.8,0.05288839]
[1730451380395,0.003027,2503.9,2503.7,4.77448]
[1730451380700,3.996377,2504.2,2503.8,0.05288839]
[1730451380860,0.003027,2503.9,2503.8,0.05288839]
[1730451381198,0.003027,2503.9,2503.7,4.77448]
[1730451381505,0.003027,2503.9,2503.8,0.05283478]
[1730451381879,0.766027,2503.9,2503.5,4.78341]
[1730451382193,0.766027,2503.9,2503.8,0.05283478]
[1730451382522,5.32345978,2503.9,2503.8,0.05280066]
[1730451382703,1.32967978,2503.9,2503.8,0.05280066]
[1730451382878,1.32967978,2503.9,2503.5,3.99438]
[1730451383189,0.84575707,2503.9,2503.8,0.05281528]
[1730451383394,0.84575707,2503.9,2503.5,3.99438]
[1730451383905,0.84575707,2503.9,2503.6,0.0529088]
[1730451385904,0.84575707,2503.9,2503.7,0.05284742]
[1730451386266,0.84575707,2503.9,2503.5,3.9944]
[1730451386472,0.84575707,2503.9,2503.6,0.0528893]
[1730451386670,0.003027,2503.9,2503.7,0.8092]
[1730451386905,0.003027,2503.9,2503.8,0.05279092]
[1730451387407,0.003027,2503.9,2503.7,4.80327]
[1730451387569,0.003027,2503.9,2503.8,0.05279092]
[1730451388383,0.003027,2503.9,2503.7,0.8092]
[1730451388591,0.003027,2503.9,2503.8,0.05279092]
[1730451388906,0.003027,2503.9,2503.7,0.8092]
[1730451389098,0.003027,2503.9,2503.8,0.05279092]
[1730451389474,0.003027,2503.9,2503.7,0.8092]
[1730451389673,0.003027,2503.9,2503.8,0.05279092]
[1730451389904,0.8195,2503.8,2503.5,3.99431]
[1730451390572,0.8195,2503.8,2503.5,7.98863]
[1730451390979,0.8195,2503.8,2503.5,3.99431]
[1730451391903,0.8195,2503.8,2503.6,3.99423]
[1730451392916,0.8195,2503.8,2503.5,3.99431]
[1730451393121,0.003027,2503.6,2503.3,4.82162]
[1730451393277,0.003027,2503.6,2503.3,8.81623]
[1730451393592,0.003027,2503.6,2503.3,4.82161]
[1730451393905,0.003027,2503.6,2503.3,8.81625]
[1730451394818,0.003027,2503.6,2503.4,3.99454]
[1730451395171,0.003027,2503.6,2503.3,8.81619]
[1730451395372,0.003027,2503.6,2503.3,4.82158]
[1730451395608,0.003027,2503.6,2503.4,3.99448]
[1730451395806,0.003027,2503.6,2503.4,3.99447]
[1730451396177,0.003027,2503.6,2503.3,4.82158]
[1730451396420,0.003027,2503.6,2503.3,8.81621]
[1730451396797,0.003027,2503.6,2503.4,3.99456]
[1730451399424,0.003027,2503.6,2503.5,0.05273138]
[1730451400492,0.003027,2503.6,2503.3,4.82158]
[1730451400700,0.003027,2503.6,2503.4,0.05858824]
[1730451402350,0.7973,2503.5,2503.4,0.05858824]
[1730451402622,8.25943578,2503.5,2503.4,0.05858824]
[1730451402828,0.003027,2503.3,2503.2,0.1220481]
[1730451404021,3.997747,2503.3,2503.2,0.1220481]
[1730451404232,7.826247,2503.3,2503.2,0.1220481]
[1730451404387,9.05510228,2503.3,2503.2,0.1220481]
[1730451411735,8.22660228,2503.3,2503.2,0.1220481]
[1730451414410,8.22660228,2503.3,2503.2,0.16646879]
[1730451415437,8.22660228,2503.3,2502.6,3.99576]
[1730451415438,0.8172,2501.2,2500.7,0.1220481]
[1730451415600,8.368947,2500.8,2500.7,0.1220481]
[1730451415803,8.368947,2500.8,2499.1,0.793273]
[1730451415804,0.003027,2500.1,2499.3,4.001]
[1730451416036,0.003027,2499.9,2499.3,4.00097]
[1730451416396,0.08275707,2499.9,2499.3,4.00097]
[1730451416719,0.08275707,2499.9,2499.1,4.78771]
[1730451416720,0.003027,2499.7,2499.1,4.78771]
[1730451417131,0.08275707,2499.7,2499.1,4.78771]
[1730451417420,0.003027,2499.5,2499.0,0.002]
[1730451417795,0.08275707,2499.5,2499.0,0.002]
[1730451418195,0.08275707,2499.5,2499.0,4.00349]
[1730451418439,0.003027,2499.5,2499.0,4.00349]
[1730451419504,0.003027,2499.5,2499.1,4.00141]
[1730451420297,0.003027,2499.5,2499.2,4.00126]
[1730451420728,0.003027,2499.5,2499.1,4.00141]
[1730451422604,0.003027,2499.3,2499.0,0.002]
[1730451422943,0.003027,2499.1,2499.0,0.002]
[1730451423128,0.003027,2499.1,2499.0,4.0036]
[1730451423918,0.003027,2499.1,2499.0,0.002]
[1730451424649,5.34522,2497.3,2497.0,0.0402]
[1730451424855,0.003027,2497.1,2497.0,0.0402]
[1730451425011,0.07973007,2497.2,2497.1,0.41652566]
[1730451425213,0.783927,2497.3,2497.0,0.0402]
[1730451425475,0.003027,2497.3,2497.0,4.04497]
[1730451425628,0.003027,2497.3,2497.0,4.04488]
[1730451425958,0.003027,2497.3,2497.0,4.04498]
[1730451426851,0.003027,2497.3,2497.0,0.0402]
[1730451427857,0.003027,2497.3,2497.0,4.045]
[1730451428223,0.003027,2497.3,2497.0,0.0402]
[1730451429470,7.567667,2497.1,2497.0,0.0402]
[1730451429628,5.59676935,2497.1,2497.0,0.0402]
[1730451429832,9.60140935,2497.1,2497.0,0.0402]
[1730451430071,9.52167928,2497.1,2497.0,0.0402]
[1730451432878,10.99750319,2497.1,2497.0,0.0402]
[1730451434278,10.99750319,2497.1,2497.0,0.0452]
[1730451434783,0.7786,2495.8,2495.7,0.1220481]
[1730451434984,0.07973007,2495.8,2495.7,0.1220481]
[1730451435884,0.08275707,2496.0,2495.7,0.1220481]
[1730451437875,0.08275707,2496.0,2495.7,4.1289181]
[1730451438083,0.08275707,2496.0,2495.8,4.00671]
[1730451438287,0.07973007,2496.1,2495.9,4.00657]
[1730451438587,1.46543854,2496.2,2496.0,4.00637]
[1730451438899,1.46543854,2496.2,2496.0,4.00641]
[1730451438900,0.07973007,2496.1,2496.0,4.00641]
[1730451439059,1.38570847,2496.2,2495.9,4.00641]
[1730451439259,1.38570847,2496.2,2496.1,4.00624]
[1730451440185,1.38570847,2496.2,2496.0,4.00635]
[1730451440373,1.38570847,2496.2,2496.1,4.00624]
[1730451440987,1.38570847,2496.2,2496.0,4.00639]
[1730451441191,1.38570847,2496.2,2495.9,4.00641]
[1730451441495,0.07973007,2496.1,2495.9,4.00641]
[1730451442393,0.003027,2496.2,2495.9,4.00641]
[1730451442626,0.003027,2496.2,2496.1,4.00624]
[1730451442798,0.003027,2496.2,2495.7,0.1220481]
[1730451443095,0.003027,2496.2,2495.9,4.00642]
[1730451443298,0.003027,2496.2,2495.9,8.01288]
[1730451443502,0.003027,2496.2,2496.0,4.00641]
[1730451443795,0.003027,2496.2,2496.1,4.00624]
[1730451444867,0.003027,2496.2,2495.9,8.01289]
[1730451445207,0.003027,2496.2,2496.1,4.00624]
[1730451445961,0.07973007,2496.3,2496.1,4.00624]
[1730451446286,0.003027,2496.2,2496.1,4.00624]
[1730451446703,0.07973007,2496.3,2496.2,4.00608]
[1730451446904,0.003027,2496.6,2496.5,4.0056]
[1730451449979,0.003027,2496.6,2496.4,4.00576]
[1730451450311,0.003027,2496.6,2496.4,8.01142]
[1730451450482,0.003027,2496.6,2496.5,4.0056]
[1730451450813,0.003027,2496.6,2496.4,4.00566]
[1730451451182,0.003027,2496.6,2496.5,4.0056]
[1730451451584,0.003027,2496.6,2496.4,4.00566]
[1730451453513,0.003027,2496.6,2496.5,4.0056]
[1730451453686,0.003027,2496.6,2496.4,4.00566]
[1730451454110,0.003027,2496.6,2496.5,4.0056]
[1730451455308,0.003027,2496.8,2496.7,4.00528]
[1730451455703,0.7542,2497.0,2496.7,4.00528]
[1730451455704,0.003027,2497.0,2496.7,4.00528]
[1730451455906,0.003027,2497.0,2496.2,0.8105]
[1730451455907,0.08275707,2497.2,2496.9,8.00992]
[1730451456111,0.08275707,2497.2,2496.9,4.00496]
[1730451456419,0.003027,2497.2,2497.1,4.00464]
[1730451457298,0.003027,2497.4,2497.1,4.00464]
[1730451457502,0.003027,2497.4,2497.3,4.00432]
[1730451458742,0.08275707,2497.8,2497.6,4.00381]
[1730451459611,0.08275707,2497.8,2497.6,4.00374]
[1730451459796,0.003027,2497.8,2497.7,4.00368]
[1730451460154,0.003027,2497.8,2497.6,4.00374]
[1730451460297,0.003027,2497.8,2497.6,8.00748]
[1730451460503,0.003027,2497.8,2497.7,4.00368]
[1730451461024,0.003027,2497.8,2497.6,8.00748]
[1730451461238,0.003027,2497.8,2497.7,4.00368]
[1730451462042,0.07973007,2498.1,2497.5,0.7698]
[1730451462043,0.003027,2498.0,2497.5,0.7698]
[1730451462232,0.003027,2498.0,2497.8,4.00349]
[1730451463219,0.003027,2498.0,2497.8,8.00691]
[1730451463414,0.003027,2498.0,2497.8,4.00342]
[1730451463638,0.003027,2498.0,2497.9,4.00336]
[1730451463850,0.8281,2498.2,2497.9,4.00336]
[1730451463851,0.003027,2498.2,2497.9,4.00336]
[1730451464204,0.003027,2498.2,2498.0,4.00314]
[1730451464548,0.003027,2498.2,2497.9,4.00327]
[1730451464703,0.003027,2498.2,2498.0,4.00319]
[1730451464909,0.003027,2498.2,2498.1,4.00304]
[1730451465212,0.07973007,2498.4,2498.3,4.00272]
[1730451465531,0.003027,2498.5,2498.4,4.00256]
[1730451466003,0.003027,2498.5,2498.2,8.00564]
[1730451466208,0.003027,2498.5,2498.3,4.00271]
[1730451468640,0.003027,2498.3,2497.7,0.7696]
[1730451468842,0.003027,2498.3,2497.8,4.00339]
[1730451469235,0.003027,2498.3,2497.9,4.00328]
[1730451469431,0.003027,2498.3,2498.1,4.00294]
[1730451469881,0.003027,2498.5,2498.2,4.00288]
[1730451470026,0.003027,2498.5,2498.2,4.00284]
[1730451470645,0.003027,2498.5,2497.9,0.08005394]
[1730451470841,0.003027,2498.5,2497.7,1.59563033]
[1730451470842,0.08275707,2498.7,2498.5,4.00228]
[1730451471042,0.003027,2498.9,2498.7,4.00208]
[1730451472223,0.003027,2498.9,2498.8,4.00192]
[1730451473176,0.003027,2498.9,2498.7,4.00199]
[1730451473331,0.003027,2498.9,2498.8,4.00192]
[1730451474077,0.08275707,2499.2,2498.9,4.0017]
[1730451474868,0.08275707,2499.2,2498.9,8.00336]
[1730451475071,0.08275707,2499.2,2498.9,4.00166]
[1730451475650,0.003027,2499.0,2498.9,8.00333]
[1730451476035,0.003027,2499.0,2498.9,4.00166]
[1730451477044,0.08275707,2499.2,2499.0,4.00158]
[1730451477375,0.08275707,2499.2,2499.0,4.00149]
[1730451478045,0.003027,2499.2,2499.0,4.00149]
[1730451478477,0.003027,2499.2,2498.8,8.00363]
[1730451478783,0.003027,2499.2,2498.8,4.0018]
[1730451478984,0.003027,2499.2,2498.9,4.00164]
[1730451479365,0.003027,2499.2,2499.0,4.00155]
[1730451482685,0.003027,2499.4,2499.1,4.00143]
[1730451482983,0.003027,2499.4,2499.2,4.00127]
[1730451483146,0.003027,2499.4,2499.2,4.00119]
[1730451483561,0.003027,2499.4,2499.2,4.00118]
[1730451484395,0.003027,2499.4,2499.2,8.00237]
[1730451485214,0.003027,2499.4,2499.3,4.00112]
[1730451485393,0.003027,2499.6,2498.8,0.8038]
[1730451485599,0.08275707,2499.8,2499.5,4.0008]
[1730451485907,0.003027,2499.6,2499.5,4.0008]
[1730451486261,0.003027,2499.6,2499.3,4.00101]
[1730451486457,0.003027,2499.6,2499.1,4.00131]
[1730451486662,0.003027,2499.6,2499.2,4.00125]
[1730451487380,0.003027,2499.6,2499.2,4.00119]
[1730451488587,0.003027,2499.6,2499.1,4.00143]
[1730451488784,0.08275707,2499.6,2499.1,4.00143]
[1730451488957,0.08275707,2499.6,2499.2,4.00127]
[1730451489698,0.003027,2499.6,2499.2,4.00127]
[1730451490206,0.003027,2499.6,2499.2,8.00245]
[1730451490403,0.003027,2499.6,2499.2,4.00118]
[1730451492809,0.003027,2499.6,2499.2,8.00237]
[1730451493014,0.003027,2499.6,2499.2,4.00118]
[1730451493435,0.003027,2499.6,2499.2,8.00237]
[1730451493929,0.003027,2499.6,2499.2,4.00118]
[1730451494484,0.003027,2499.6,2499.2,4.00117]
[1730451494692,0.003027,2499.6,2499.2,8.00234]
[1730451494903,0.003027,2499.6,2499.2,4.00117]
[1730451495530,0.003027,2499.6,2499.2,8.00234]
[1730451495717,0.003027,2499.6,2499.2,4.00117]
[1730451496632,0.003027,2499.6,2499.2,8.00235]
[1730451496926,0.003027,2499.6,2499.3,4.00102]
[1730451497592,0.003027,2499.6,2498.8,0.8038]
[1730451497791,0.08275707,2499.8,2499.5,4.0008]
[1730451498203,0.08275707,2499.8,2499.4,4.00085]
[1730451498409,0.003027,2499.5,2499.4,4.00085]
[1730451498622,0.003027,2499.7,2499.4,4.00085]
[1730451499435,0.003027,2499.7,2499.5,4.00077]
[1730451500519,0.88345707,2499.9,2499.6,4.00064]
[1730451500864,0.003027,2499.9,2499.6,4.00049]
[1730451502151,0.003027,2499.9,2499.7,4.0004]
[1730451503208,0.003027,2499.9,2499.7,4.00039]
[1730451503622,0.003027,2499.9,2499.7,8.00079]
[1730451504155,0.08275707,2500.1,2499.7,4.00039]
[1730451504450,0.08275707,2500.1,2499.8,4.00029]
[1730451505531,0.003027,2500.1,2499.8,4.00029]
[1730451505716,0.8168,2500.2,2499.7,4.78329]
[1730451505916,0.8168,2500.2,2499.8,4.00019]
[1730451506212,0.003027,2500.0,2499.8,4.00019]
[1730451506426,0.003027,2500.0,2499.7,4.78328]
[1730451506657,0.003027,2500.0,2499.7,8.78367]
[1730451506856,0.003027,2500.0,2499.8,4.00031]
[1730451507958,0.003027,2500.0,2499.8,4.00024]
[1730451508254,0.819827,2500.2,2499.8,4.00024]
[1730451508614,0.819827,2500.2,2499.9,4.00013]
[1730451508842,0.819827,2500.2,2499.7,4.78322]
[1730451509053,0.819827,2500.2,2499.8,4.00031]
[1730451509356,0.819827,2500.2,2499.7,8.7836]
[1730451509827,0.819827,2500.2,2499.8,4.00031]
[1730451510034,0.07973007,2500.3,2500.1,3.99974]
[1730451510236,0.003027,2500.5,2499.9,4.00001]
[1730451510237,4.002247,2500.5,2499.9,4.00001]
[1730451510466,0.84253007,2500.4,2499.9,4.00014]
[1730451510786,0.84253007,2500.4,2500.0,3.99991]
[1730451511091,0.84253007,2500.4,2500.1,3.99983]
[1730451511247,0.7628,2500.4,2500.2,3.99963]
[1730451511447,0.08275707,2500.5,2500.2,3.99963]
[1730451511744,0.08275707,2500.5,2500.1,7.99957]
[1730451511952,0.003027,2500.8,2500.6,3.99898]
[1730451512190,0.003027,2500.8,2500.6,7.99791]
[1730451512399,0.788,2500.9,2500.6,3.99893]
[1730451512543,0.003027,2501.0,2500.4,3.99926]
[1730451512544,0.003027,2500.8,2500.4,3.99926]
[1730451512750,0.003027,2500.8,2500.5,3.99918]
[1730451512989,0.87075707,2501.0,2500.5,3.99918]
[1730451513149,0.791027,2501.0,2500.6,3.99903]
[1730451513668,0.791027,2501.0,2500.7,3.99876]
[1730451513868,0.003027,2501.0,2500.8,3.99871]
[1730451514092,0.003027,2501.2,2500.8,3.99871]
[1730451514248,0.003027,2501.2,2500.8,3.99864]
[1730451514449,0.003027,2501.2,2500.9,3.99845]
[1730451514870,0.003027,2501.2,2500.8,8.78842]
[1730451515073,0.003027,2501.2,2500.9,3.99847]
[1730451515470,0.07973007,2501.4,2501.0,3.99839]
[1730451515872,0.003027,2501.3,2501.0,3.99839]
[1730451516078,0.85065707,2501.5,2501.0,3.9983]
[1730451516250,0.770927,2501.5,2501.0,3.99828]
[1730451516451,0.770927,2501.5,2501.2,3.99807]
[1730451517097,0.770927,2501.5,2501.1,3.99823]
[1730451517098,0.003027,2501.5,2501.1,3.99823]
[1730451518884,0.003027,2501.5,2501.0,3.99828]
[1730451519098,0.003027,2501.5,2501.0,3.99837]
[1730451520665,0.003027,2501.5,2501.0,7.99668]
[1730451521073,0.003027,2501.1,2500.5,4.76427]
[1730451521361,0.003027,2501.1,2500.6,3.9989]
[1730451522265,7.999627,2501.1,2500.5,4.76427]
[1730451522905,4.001297,2501.1,2500.5,4.76427]
[1730451523099,0.7829,2500.9,2500.3,3.99946]
[1730451523307,0.003027,2500.8,2500.3,7.99888]
[1730451523460,0.003027,2500.8,2500.3,3.99942]
[1730451523660,0.003027,2500.6,2500.3,3.99942]
[1730451524183,0.003027,2500.6,2500.3,7.99885]
[1730451524390,0.003027,2500.6,2500.3,3.99942]
[1730451524589,0.003027,2500.6,2500.3,7.99879]
[1730451524988,0.003027,2500.8,2500.3,7.99879]
[1730451525184,0.003027,2500.8,2500.3,3.99937]
[1730451526406,0.003027,2500.8,2500.3,7.9988]
[1730451527213,0.003027,2500.8,2500.3,3.99937]
[1730451527370,0.003027,2500.8,2500.3,7.99879]
[1730451527707,0.003027,2500.8,2500.3,3.99937]
[1730451528298,0.003027,2500.8,2500.4,3.99934]
[1730451528988,0.003027,2500.8,2500.5,3.99919]
[1730451529501,0.003027,2500.8,2500.3,7.99879]
[1730451529693,0.003027,2500.8,2500.3,3.99937]
[1730451529895,0.003027,2500.8,2500.3,7.99878]
[1730451530096,0.003027,2500.8,2500.3,3.99937]
[1730451530815,0.003027,2500.8,2500.3,7.9988]
[1730451531114,0.003027,2500.8,2500.3,3.99937]
[1730451531433,4.001767,2500.8,2500.3,3.99937]
[1730451531572,3.99914,2500.6,2500.0,4.78548]
[1730451531772,0.7513,2500.5,2500.0,3.99998]
[1730451532070,0.003027,2500.3,2499.8,0.85129377]
[1730451532275,0.003027,2500.3,2499.8,0.05999377]
[1730451532276,3.99984,2500.1,2499.8,0.05999377]
[1730451532882,4.002557,2500.3,2499.8,0.05999377]
[1730451533285,3.99969,2500.2,2499.8,0.05999377]
[1730451533873,4.07967007,2500.1,2499.8,0.05999377]
[1730451534606,4.07966007,2500.1,2499.8,0.05999377]
[1730451537412,0.07973007,2500.1,2499.8,0.05999377]
[1730451538072,0.07973007,2500.1,2500.0,4.0]
[1730451538275,0.8141,2500.6,2500.2,3.99959]
[1730451538711,4.81316,2500.6,2500.1,3.99975]
[1730451539480,0.08275707,2500.5,2499.8,0.05999377]
[1730451539688,3.99968,2500.2,2499.8,0.05999377]
[1730451539872,4.002707,2500.2,2499.8,0.05999377]
[1730451540072,3.99937,2500.4,2499.9,4.00002]
[1730451540342,0.07973007,2500.5,2499.8,4.06019377]
[1730451540521,0.57006878,2500.5,2500.0,3.99989]
[1730451540686,4.002157,2500.6,2499.8,0.05999377]
[1730451540687,0.003027,2500.6,2499.8,0.05999377]
[1730451540879,0.003027,2500.6,2500.2,3.99958]
[1730451541511,0.003027,2500.6,2500.4,3.99935]
[1730451541812,0.003027,2500.8,2500.5,3.99918]
[1730451542009,0.003027,2500.8,2500.4,7.9985]
[1730451542175,0.003027,2500.8,2500.4,3.99921]
[1730451542606,0.003027,2500.8,2500.4,7.99847]
[1730451543395,0.90993007,2500.9,2500.5,3.99917]
[1730451543811,0.003027,2500.8,2500.5,3.99917]
[1730451544617,0.003027,2500.8,2500.3,3.99951]
[1730451544783,0.003027,2500.8,2500.2,3.99957]
[1730451545126,0.003027,2500.8,2500.4,3.99932]
[1730451545626,0.003027,2500.8,2500.4,3.99927]
[1730451545784,0.8302,2500.9,2500.6,3.99893]
[1730451546324,0.8302,2500.9,2500.4,3.9993]
[1730451546529,0.003027,2500.8,2500.4,3.9993]
[1730451546687,0.003027,2500.8,2500.4,3.99925]
[1730451547199,0.003027,2500.8,2500.2,3.99956]
[1730451547397,4.001757,2500.8,2500.3,3.99948]
[1730451551887,0.003027,2500.8,2500.2,3.99953]
[1730451552126,4.001757,2500.8,2500.3,3.9995]
[1730451553891,0.003027,2500.8,2500.4,3.99934]
[1730451554293,4.001747,2500.8,2500.0,0.01]
[1730451554494,4.001747,2500.8,2500.3,3.9995]
[1730451556652,0.003027,2500.8,2500.4,3.99934]
[1730451557247,0.003027,2500.8,2500.7,3.99888]
[1730451557533,0.003027,2500.8,2500.4,3.99932]
[1730451559740,0.003027,2500.8,2500.4,3.99935]
[1730451564625,0.8302,2500.9,2500.6,3.99899]
[1730451564816,0.003027,2501.0,2500.6,3.99899]
[1730451566115,0.003027,2501.0,2500.7,0.07996914]
[1730451566346,0.003027,2501.0,2500.6,3.99899]
[1730451567067,0.003027,2501.0,2500.4,4.75026]
[1730451567228,0.003027,2501.0,2500.2,3.99956]
[1730451567229,3.99857,2500.9,2500.2,3.99956]
[1730451567564,7.99721,2500.9,2500.3,3.99942]
[1730451567926,3.99857,2500.9,2500.4,3.99931]
[1730451569875,3.99857,2500.9,2500.3,7.99885]
[1730451570230,3.99857,2500.9,2500.4,3.99927]